fUST/lending_fUST_20250815
["ID","MTS","AMOUNT","RATE_DAILY","PERIOD"]
[379407853,1755270639014,-460.0,0.00019178,2]
[379407855,1755270639024,-460.0,0.00019178,2]
[379407857,1755270639033,-460.0,0.00019178,2]
[379407859,1755270639043,-461.02573981,0.00019178,2]
[379407861,1755270639053,-460.0,0.00019178,2]
[379407863,1755270639062,-460.0,0.00019178,2]
[379407865,1755270639072,-460.0,0.00019178,2]
[379407867,1755270639081,-460.0,0.00019178,2]
[379407869,1755270639091,-460.0,0.00019178,2]
[379407871,1755270639101,-460.0,0.00019178,2]
[379407873,1755270639111,-460.0,0.00019178,2]
[379407875,1755270639121,-460.0,0.00019178,2]
[379407877,1755270639131,-64.55618152,0.00019178,2]
[379407878,1755270639143,-395.44381848,0.00019178,2]
[379407879,1755270639154,-460.0,0.00019178,2]
[379407881,1755270639163,-460.0,0.00019178,2]
[379407883,1755270639172,-460.0,0.00019178,2]
[379407885,1755270639182,-460.0,0.00019178,2]
[379407887,1755270639191,-460.0,0.00019178,2]
[379407888,1755270639200,-466.57483543,0.00019178,2]
[379407891,1755270639210,-461.67507515,0.00019178,2]
[379407892,1755270639219,-460.0,0.00019178,2]
[379407894,1755270639228,-460.0,0.00019178,2]
[379407896,1755270639237,-460.0,0.00019178,2]
[379407898,1755270639246,-460.0,0.00019178,2]
[379407900,1755270639256,-461.12699431,0.00019178,2]
[379407902,1755270639268,-460.0,0.00019178,2]
[379407903,1755270639278,-461.20061775,0.00019178,2]
[379407904,1755270639288,-151.0,0.00019178,2]
[379407905,1755270639303,-151.0,0.00019178,2]
[379407906,1755270639314,-460.0,0.00019178,2]
[379407907,1755270639324,-489.77,0.00019178,2]
[379407908,1755270639335,-460.0,0.00019178,2]
[379407909,1755270639346,-489.87,0.00019178,2]
[379407910,1755270639355,-460.0,0.00019178,2]
[379407911,1755270639365,-460.0,0.00019178,2]
[379407912,1755270639375,-460.0,0.00019178,2]
[379407913,1755270639384,-1182.12,0.00019178,2]
[379407914,1755270639394,-404.21805858,0.00019178,2]
[379407915,1755270639408,-55.78194142,0.00019178,2]
[379407916,1755270639417,-460.76445627,0.00019178,2]
[379407918,1755270639427,-460.0,0.00019178,2]
[379407920,1755270639436,-462.26907402,0.00019178,2]
[379407921,1755270639446,-466.99615039,0.00019178,2]
[379407922,1755270639456,-44.18838718,0.00019178,2]
[379407923,1755270639482,-415.81161282,0.00019178,2]
[379407924,1755270639491,-467.39255736,0.00019178,2]
[379407927,1755270639501,-460.0,0.00019178,2]
[379407929,1755270639517,-460.0,0.00019178,2]
[379407931,1755270639527,-460.0,0.00019178,2]
[379407933,1755270639537,-469.8652481,0.00019178,2]
[379407935,1755270639546,-460.0,0.00019178,2]
[379407937,1755270639556,-460.0,0.00019178,2]
[379407939,1755270639566,-460.0,0.00019178,2]
[379407941,1755270639576,-503.86,0.00019178,2]
[379407943,1755270639585,-1609.03,0.00019178,2]
[379407945,1755270639595,-460.0,0.00019178,2]
[379407947,1755270639604,-460.0,0.00019178,2]
[379407949,1755270639614,-460.0,0.00019178,2]
[379407951,1755270639623,-460.0,0.00019178,2]
[379407953,1755270639632,-460.0,0.00019178,2]
[379407955,1755270639641,-515.75,0.00019178,2]
[379407957,1755270639651,-1467.55,0.00019178,2]
[379407959,1755270639660,-460.0,0.00019178,2]
[379407961,1755270639669,-460.0,0.00019178,2]
[379407963,1755270639679,-461.98463166,0.00019178,2]
[379407965,1755270639688,-461.33098447,0.00019178,2]
[379407966,1755270639698,-460.0,0.00019178,2]
[379407968,1755270639708,-463.51697422,0.00019178,2]
[379407970,1755270639718,-463.23249831,0.00019178,2]
[379407972,1755270639728,-461.16710078,0.00019178,2]
[379407975,1755270639738,-460.98465797,0.00019178,2]
[379407976,1755270639747,-460.0,0.00019178,2]
[379407979,1755270639757,-460.0,0.00019178,2]
[379407980,1755270639770,-461.38941649,0.00019178,2]
[379407982,1755270639780,-460.0,0.00019178,2]
[379407984,1755270639789,-460.0,0.00019178,2]
[379407986,1755270639798,-462.90498832,0.00019178,2]
[379407988,1755270639807,-461.14486151,0.00019178,2]
[379407990,1755270639817,-460.0,0.00019178,2]
[379407992,1755270639827,-462.1237991,0.00019178,2]
[379407994,1755270639836,-460.0,0.00019178,2]
[379407996,1755270639845,-460.0,0.00019178,2]
[379407998,1755270639855,-460.0,0.00019178,2]
[379408000,1755270639864,-460.0,0.00019178,2]
[379408002,1755270639873,-460.0,0.00019178,2]
[379408004,1755270639883,-516.83,0.00019178,2]
[379408006,1755270639892,-460.0,0.00019178,2]
[379408008,1755270639902,-274.13066904,0.00019178,2]
[379408052,1755270640488,-185.86933096,0.00019178,2]
[379408053,1755270640497,-85.83826902,0.00019178,2]
[379408054,1755270640563,-390.59173098,0.00019178,2]
[379408055,1755270640572,-460.0,0.00019178,2]
[379408056,1755270640582,-460.0,0.00019178,2]
[379408057,1755270640592,-256.87726962,0.00019178,2]
[379408058,1755270640604,-204.21217326,0.00019178,2]
[379408059,1755270640614,-460.0,0.00019178,2]
[379408060,1755270640623,-460.0,0.00019178,2]
[379408061,1755270640632,-460.0,0.00019178,2]
[379408062,1755270640642,-460.0,0.00019178,2]
[379408063,1755270640741,-460.0,0.00019178,2]
[379408064,1755270640769,-461.0666284,0.00019178,2]
[379408065,1755270640778,-168.0,0.00019195,2]
[379408066,1755270640787,-3000.0,0.000192,2]
[379408067,1755270640796,-420.0,0.000192,2]
[379408068,1755270640806,-168.0,0.00019281,2]
[379408069,1755270640815,-168.0,0.00019308,2]
[379408070,1755270640824,-168.0,0.00019317,2]
[379408071,1755270640834,-380.239,0.0001935,2]
[379408072,1755270640843,-179.184,0.0001935,2]
[379408073,1755270640852,-156.794733,0.00019419,2]
[379408074,1755270640862,-250.069788,0.00019419,2]
[379408075,1755270640873,-1000.0,0.00019419,2]
[379408076,1755270640882,-1000.0,0.00019419,2]
[379408077,1755270640892,-1000.0,0.00019419,2]
[379408078,1755270640901,-1000.0,0.00019419,2]
[379408079,1755270640911,-1000.0,0.00019419,2]
[379408080,1755270640920,-1000.0,0.00019419,2]
[379408081,1755270640929,-1000.0,0.00019419,2]
[379408082,1755270640939,-1000.0,0.00019419,2]
[379408083,1755270640949,-1000.0,0.00019419,2]
[379408084,1755270640962,-1000.0,0.00019419,2]
[379408085,1755270640972,-1000.0,0.00019419,2]
[379408086,1755270640981,-1000.0,0.00019419,2]
[379408087,1755270640991,-1000.0,0.00019419,2]
[379408088,1755270641001,-1000.0,0.00019419,2]
[379408089,1755270641014,-1000.0,0.00019419,2]
[379408090,1755270641024,-1000.0,0.00019419,2]
[379408091,1755270641034,-1000.0,0.00019419,2]
[379408092,1755270641043,-1000.0,0.00019419,2]
[379408093,1755270641053,-1000.0,0.00019419,2]
[379408094,1755270641063,-1000.0,0.00019419,2]
[379408095,1755270641072,-1000.0,0.00019419,2]
[379408096,1755270641081,-1000.0,0.00019419,2]
[379408097,1755270641091,-1000.0,0.00019419,2]
[379408098,1755270641100,-1000.0,0.00019419,2]
[379408099,1755270641110,-1110.7074,0.00019419,2]
[379408100,1755270641120,-500.0,0.00019441,2]
[379408101,1755270641130,-500.0,0.00019441,2]
[379408102,1755270641140,-151.0,0.00019441,2]
[379408103,1755270641150,-263.758689,0.00019452,2]
[379408104,1755270641162,-151.000001,0.00019452,2]
[379408105,1755270641173,-151.0,0.00019452,2]
[379408106,1755270641182,-242.806213,0.00019452,2]
[379408107,1755270641194,-155.752034,0.00019452,2]
[379408108,1755270641203,-155.752034,0.00019452,2]
[379408109,1755270641214,-151.0,0.00019452,2]
[379408110,1755270641223,-151.0,0.00019452,2]
[379408111,1755270641233,-742.78,0.00019452,2]
[379408112,1755270641243,-460.0,0.00019452,2]
[379408113,1755270641253,-418.54,0.00019452,2]
[379408114,1755270641263,-460.0,0.00019452,2]
[379408115,1755270641273,-460.0,0.00019452,2]
[379408116,1755270641283,-460.0,0.00019452,2]
[379408117,1755270641293,-316.97,0.00019452,2]
[379408118,1755270641305,-460.0,0.00019452,2]
[379408119,1755270641315,-460.0,0.00019452,2]
[379408120,1755270641325,-392.58,0.00019452,2]
[379408121,1755270641335,-1182.12,0.00019452,2]
[379408122,1755270641344,-460.0,0.00019452,2]
[379408123,1755270641354,-460.0,0.00019452,2]
[379408124,1755270641364,-291.74693007,0.00019452,2]
[379408125,1755270641374,-211.98143147,0.00019452,2]
[379408126,1755270641383,-1609.03,0.00019452,2]
[379408127,1755270641393,-460.0,0.00019452,2]
[379408128,1755270641402,-460.0,0.00019452,2]
[379408129,1755270641412,-225.34,0.00019452,2]
[379408130,1755270641421,-460.0,0.00019452,2]
[379408131,1755270641431,-1467.55,0.00019452,2]
[379408132,1755270641441,-460.0,0.00019452,2]
[379408133,1755270641451,-202.2,0.00019452,2]
[379408134,1755270641460,-460.0,0.00019452,2]
[379408135,1755270641469,-516.83,0.00019452,2]
[379408136,1755270641479,-572.57,0.00019452,2]
[379408137,1755270641488,-460.0,0.00019452,2]
[379408138,1755270641497,-460.0,0.00019452,2]
[379408139,1755270641507,-460.0,0.00019452,2]
[379408140,1755270641518,-168.0,0.00019499,2]
[379408141,1755270641527,-1000.0,0.000195,2]
[379408142,1755270641536,-460.0,0.00019518,2]
[379408143,1755270641546,-574.44051249,0.00019518,2]
[379408144,1755270641556,-460.0,0.00019518,2]
[379408145,1755270641566,-500.0,0.00019518,2]
[379408146,1755270641575,-460.0,0.00019518,2]
[379408147,1755270641584,-460.0,0.00019518,2]
[379408148,1755270641594,-234.12,0.00019518,2]
[379408149,1755270641604,-151.0,0.00019519,2]
[379408150,1755270641613,-151.0,0.00019519,2]
[379408151,1755270641623,-151.0,0.00019519,2]
[379408152,1755270641632,-151.0,0.00019519,2]
[379408153,1755270641641,-151.0,0.00019519,2]
[379408154,1755270641651,-291.05681,0.00019519,2]
[379408155,1755270641660,-291.05681,0.00019519,2]
[379408156,1755270641670,-151.0,0.00019519,2]
[379408157,1755270641680,-600.521899,0.00019519,2]
[379408158,1755270641690,-600.521899,0.00019519,2]
[379408159,1755270641699,-151.0,0.00019519,2]
[379408160,1755270641709,-153.749091,0.00019519,2]
[379408161,1755270641719,-121.95192331,0.00019519,2]
[379408171,1755270643111,-29.04807669,0.00019519,2]
[379408172,1755270643125,-151.0,0.00019519,2]
[379408173,1755270643137,-151.0,0.00019519,2]
[379408174,1755270643149,-155.752034,0.00019519,2]
[379408175,1755270643161,-155.752034,0.00019519,2]
[379408176,1755270643172,-151.0,0.00019519,2]
[379408177,1755270643182,-151.0,0.00019519,2]
[379408178,1755270643194,-151.0,0.00019549,2]
[379408180,1755270643205,-151.0,0.00019549,2]
[379408181,1755270643218,-500.0,0.00019573,2]
[379408182,1755270643231,-500.0,0.00019573,2]
[379408183,1755270643243,-392.99993173,0.00019573,2]
[379408184,1755270643255,-168.0,0.0001959,2]
[379408185,1755270643268,-160.0,0.00019622,2]
[379408186,1755270643281,-168.0,0.00019632,2]
[379408187,1755270643294,-151.809288,0.00019641,2]
[379408188,1755270643311,-168.0,0.00019643,2]
[379408190,1755270643324,-5759.0,0.00019645,2]
[379408192,1755270643337,-151.0,0.00019645,2]
[379408194,1755270643348,-151.0,0.00019645,2]
[379408196,1755270643359,-168.0,0.00019649,2]
[379408198,1755270643371,-168.0,0.0001965,2]
[379408200,1755270643385,-3403.59467276,0.00019692,2]
[379408203,1755270643399,-168.0,0.00019708,2]
[379408205,1755270643413,-500.0,0.00019715,2]
[379408207,1755270643425,-500.0,0.00019715,2]
[379408209,1755270643439,-188.0,0.00019715,2]
[379408212,1755270643449,-168.0,0.00019716,2]
[379408214,1755270643460,-1789.1440087,0.0001972,2]
[379408216,1755270643472,-425.24473047,0.00019721,2]
[379408218,1755270643483,-1000.0,0.00019721,2]
[379408220,1755270643495,-642.92085814,0.00019721,2]
[379408222,1755270643507,-1000.0,0.00019721,2]
[379408225,1755270643520,-1000.0,0.00019721,2]
[379408227,1755270643532,-1000.0,0.00019721,2]
[379408229,1755270643543,-1000.0,0.00019721,2]
[379408231,1755270643554,-151.0,0.00019726,2]
[379408233,1755270643565,-151.0,0.00019726,2]
[379408235,1755270643576,-151.0,0.00019726,2]
[379408237,1755270643587,-151.0,0.00019726,2]
[379408239,1755270643598,-151.0,0.00019726,2]
[379408241,1755270643609,-151.0,0.00019726,2]
[379408243,1755270643619,-155.752034,0.00019726,2]
[379408246,1755270643631,-155.752034,0.00019726,2]
[379408248,1755270643642,-460.0,0.00019726,2]
[379408250,1755270643652,-460.0,0.00019726,2]
[379408252,1755270643663,-460.0,0.00019726,2]
[379408254,1755270643674,-460.0,0.00019726,2]
[379408256,1755270643684,-324.58,0.00019726,2]
[379408258,1755270643696,-1182.12,0.00019726,2]
[379408261,1755270643707,-333.29,0.00019726,2]
[379408263,1755270643718,-460.0,0.00019726,2]
[379408265,1755270643728,-1322.74029751,0.00019726,2]
[379408268,1755270643747,-286.28970249,0.00019726,2]
[379408270,1755270643761,-460.0,0.00019726,2]
[379408272,1755270643774,-460.0,0.00019726,2]
[379408274,1755270643785,-460.0,0.00019726,2]
[379408276,1755270643796,-1467.55,0.00019726,2]
[379408278,1755270643807,-460.0,0.00019726,2]
[379408280,1755270643819,-171.46255302,0.00019726,2]
[379408282,1755270643830,-516.83,0.00019726,2]
[379408284,1755270643841,-338.57,0.00019726,2]
[379408287,1755270643852,-84.21723963,0.00019726,2]
[379408289,1755270643866,-375.78276037,0.00019726,2]
[379408291,1755270643878,-460.0,0.00019726,2]
[379408293,1755270643889,-347.66,0.00019742,2]
[379408295,1755270643901,-157.3242,0.00019767,2]
[379408298,1755270643912,-269.339904,0.000198,2]
[379408300,1755270643923,-269.339904,0.000198,2]
[379408302,1755270643934,-168.0,0.00019803,2]
[379408304,1755270643945,-168.0,0.00019804,2]
[379408306,1755270643956,-500.0,0.00019842,2]
[379408308,1755270643967,-972.0,0.00019852,2]
[379408310,1755270643979,-636.0,0.00019852,2]
[379408312,1755270643990,-2152.0,0.00019852,2]
[379408315,1755270644001,-216.322796,0.00019863,2]
[379408317,1755270644014,-200.0,0.00019865,20]
[379408319,1755270644024,-200.0,0.00019865,20]
[379408321,1755270644035,-200.0,0.00019865,20]
[379408323,1755270644046,-200.0,0.00019865,20]
[379408325,1755270644056,-200.0,0.00019865,20]
[379408327,1755270644066,-200.0,0.00019865,20]
[379408329,1755270644075,-200.0,0.00019865,20]
[379408331,1755270644086,-280.0,0.00019865,20]
[379408333,1755270644095,-151.631436,0.000199,2]
[379408335,1755270644105,-151.0,0.000199,2]
[379408337,1755270644116,-151.0,0.000199,2]
[379408339,1755270644126,-151.0,0.000199,2]
[379408341,1755270644135,-151.0,0.000199,2]
[379408343,1755270644144,-151.0,0.000199,2]
[379408345,1755270644155,-151.0,0.000199,2]
[379408347,1755270644164,-151.0,0.000199,2]
[379408349,1755270644173,-151.0,0.000199,2]
[379408351,1755270644183,-151.0,0.000199,2]
[379408353,1755270644192,-151.0,0.000199,2]
[379408355,1755270644201,-151.0,0.000199,2]
[379408357,1755270644210,-250.0,0.000199,2]
[379408359,1755270644219,-250.0,0.000199,2]
[379408361,1755270644229,-151.0,0.000199,2]
[379408362,1755270644238,-151.0,0.000199,2]
[379408364,1755270644247,-198.146374,0.000199,2]
[379408383,1755270644425,-198.146374,0.000199,2]
[379408386,1755270644442,-549.151805,0.000199,2]
[379408388,1755270644452,-151.0,0.000199,2]
[379408390,1755270644461,-151.0,0.000199,2]
[379408392,1755270644470,-223.260295,0.000199,2]
[379408394,1755270644481,-181.151044,0.000199,2]
[379408396,1755270644490,-181.151044,0.000199,2]
[379408398,1755270644500,-291.05681,0.000199,2]
[379408400,1755270644510,-291.05681,0.000199,2]
[379408402,1755270644522,-174.341183,0.000199,2]
[379408404,1755270644531,-600.521899,0.000199,2]
[379408406,1755270644541,-600.521899,0.000199,2]
[379408408,1755270644551,-151.0,0.000199,2]
[379408410,1755270644560,-151.0,0.000199,2]
[379408412,1755270644569,-202.238062,0.000199,2]
[379408414,1755270644578,-151.0,0.000199,2]
[379408416,1755270644588,-151.0,0.000199,2]
[379408417,1755270644597,-155.752034,0.000199,2]
[379408419,1755270644607,-155.752034,0.000199,2]
[379408421,1755270644616,-151.0,0.000199,2]
[379408423,1755270644626,-151.0,0.000199,2]
[379408425,1755270644635,-151.0,0.000199,2]
[379408427,1755270644645,-151.0,0.000199,2]
[379408429,1755270644654,-269.339904,0.000199,2]
[379408431,1755270644663,-269.339904,0.000199,2]
[379408433,1755270644673,-6420.67152463,0.000199,2]
[379408575,1755270646179,-680.88,0.00019178,2]
[379408577,1755270646189,-56.78493114,0.00019257,2]
[379408580,1755270646200,-111.21506886,0.00019257,2]
[379408582,1755270646209,-680.88,0.00019452,2]
[379408584,1755270646219,-680.88,0.00019726,2]
[379408586,1755270646228,-5028.94260706,0.000199,2]
[379408588,1755270646243,-1436.24338118,0.000199,2]
[379408607,1755270646385,-965.53837969,0.000199,2]
[379408609,1755270646396,-4262.33506886,0.000199,2]
[379412878,1755271293028,160.002794,0.00013699,2]
[379412883,1755271328267,10000.0,0.00030137,120]
[379412928,1755271547142,-283.555228,0.00017604,2]
[379412929,1755271547165,-684.46309547,0.00017604,5]
[379412930,1755271547192,-166.17068051,0.00017901,2]
[379412931,1755271547214,-406.673338,0.00018,2]
[379412932,1755271547236,-498.85390717,0.00018001,2]
[379412933,1755271547258,-379.6182246,0.0001817,2]
[379412934,1755271547279,-369.0287212,0.0001833,2]
[379412935,1755271547300,-1511.10378485,0.00018556,2]
[379412952,1755271721112,150.999999,0.0002,120]
[379413001,1755271832278,-166.50192101,0.00018,2]
[379413002,1755271832287,-300.0,0.00018019,2]
[379413003,1755271832297,-1200.0,0.00018019,2]
[379413004,1755271832307,-553.39807899,0.0001802,2]
[379413006,1755271832364,-1446.60192101,0.0001802,2]
[379413008,1755271832374,-1900.76507342,0.0001802,2]
[379413011,1755271832386,-99.23492658,0.0001802,2]
[379413014,1755271832396,-274.62686967,0.0001802,2]
[379413016,1755271832408,-1725.37313033,0.0001802,2]
[379413017,1755271832419,-405.6,0.0001802,2]
[379413019,1755271832429,-276.10580641,0.00018547,2]
[379413020,1755271832438,-276.10580639,0.00018552,2]
[379413021,1755271832448,-276.10580639,0.00018556,2]
[379413022,1755271832457,-254.13075676,0.00018556,2]
[379413023,1755271832467,-166.1706805,0.00018558,2]
[379413025,1755271832477,-254.13075674,0.00018567,2]
[379413026,1755271832486,-254.13075674,0.00018578,2]
[379413027,1755271832497,-254.13075674,0.00018589,2]
[379413028,1755271832506,-254.13075674,0.000186,2]
[379413029,1755271832515,-47.23498612,0.00018648,2]
[379413237,1755271838518,-452.76501388,0.00018648,2]
[379413239,1755271838527,-500.0,0.00018648,2]
[379413241,1755271838536,-499.32868407,0.00018648,2]
[379413243,1755271838545,-365.01766307,0.00018648,2]
[379413245,1755271838554,-500.0,0.00018648,2]
[379413247,1755271838563,-782.93,0.00018649,3]
[379413249,1755271838573,-391.46,0.00018649,3]
[379413251,1755271838582,-195.73,0.00018649,3]
[379413253,1755271838591,-587.22,0.00018649,3]
[379413255,1755271838600,-6579.54861295,0.00018649,2]
[379413264,1755271838690,-311.04716517,0.00018649,2]
[379413266,1755271838701,-485.98100497,0.00018649,2]
[379413473,1755271840743,-320.51800006,0.00018649,2]
[379413475,1755271840755,-2227.5,0.00018649,2]
[379413477,1755271840767,-39417.48739863,0.00018649,2]
[379413479,1755271840776,-203.43742849,0.00018658,2]
[379413481,1755271840786,-543.20247698,0.00018658,2]
[379413483,1755271840795,-543.20247698,0.00018658,2]
[379413485,1755271840805,-543.20247698,0.00018658,2]
[379413487,1755271840814,-543.20247698,0.00018658,2]
[379413489,1755271840824,-543.20247698,0.00018658,2]
[379413491,1755271840833,-543.20247698,0.00018658,2]
[379413493,1755271840843,-543.20247698,0.00018658,2]
[379413495,1755271840852,-543.20247698,0.00018658,2]
[379413497,1755271840862,-543.20247698,0.00018658,2]
[379413499,1755271840872,-543.20247698,0.00018658,2]
[379413501,1755271840881,-543.20247698,0.00018658,2]
[379413503,1755271840891,-543.20247698,0.00018658,2]
[379413505,1755271840901,-543.20247698,0.00018658,2]
[379413507,1755271840910,-543.20247698,0.00018658,2]
[379413509,1755271840924,-543.20247698,0.00018658,2]
[379413511,1755271840934,-543.20247698,0.00018658,2]
[379413513,1755271840944,-543.20247697,0.00018658,2]
[379413515,1755271840953,-543.20247697,0.00018658,2]
[379413517,1755271840962,-543.20247697,0.00018658,2]
[379413519,1755271840972,-543.20247697,0.00018658,2]
[379413521,1755271840981,-543.20247697,0.00018658,2]
[379413523,1755271840991,-543.20247697,0.00018658,2]
[379413525,1755271841000,-543.20247697,0.00018658,2]
[379413527,1755271841010,-543.20247697,0.00018658,2]
[379413529,1755271841019,-543.20247697,0.00018658,2]
[379413531,1755271841028,-570.36260082,0.00018658,2]
[379413533,1755271841037,-570.36260082,0.00018658,2]
[379413535,1755271841047,-570.36260082,0.00018658,2]
[379413537,1755271841057,-570.36260082,0.00018658,2]
[379413539,1755271841067,-570.36260082,0.00018658,2]
[379413541,1755271841076,-3347.85285465,0.00018659,2]
[379413746,1755271843383,-106600.0,0.00018659,2]
[379413748,1755271843396,-30497.8592867,0.00018659,2]
[379413750,1755271843407,-2322.00830845,0.00018659,2]
[379413752,1755271843422,-6010.0,0.00018659,2]
[379413778,1755271843614,-477.71855331,0.00018659,2]
[379414058,1755271846364,-11400.27058906,0.00018659,2]
[379414060,1755271846376,-9487.52383994,0.00018659,2]
[379414062,1755271846386,-12257.702308,0.00019,2]
[379414064,1755271846395,-200.0,0.0001902,20]
[379414066,1755271846405,-200.0,0.0001902,20]
[379414068,1755271846416,-200.0,0.0001902,20]
[379414070,1755271846431,-200.0,0.0001902,20]
[379414072,1755271846442,-200.0,0.0001902,20]
[379414074,1755271846452,-200.0,0.0001902,20]
[379414076,1755271846462,-168.0,0.00019125,2]
[379414078,1755271846472,-461.61865116,0.00019178,2]
[379414080,1755271846481,-461.36859759,0.00019178,2]
[379414082,1755271846490,-151.0,0.00019178,2]
[379414084,1755271846499,-151.0,0.00019178,2]
[379414086,1755271846509,-521.694215,0.00019178,2]
[379414088,1755271846518,-521.694215,0.00019178,2]
[379414090,1755271846528,-595.77,0.00019178,2]
[379414092,1755271846537,-460.0,0.00019178,2]
[379414094,1755271846547,-460.0,0.00019178,2]
[379414096,1755271846557,-460.0,0.00019178,2]
[379414098,1755271846566,-460.0,0.00019178,2]
[379414100,1755271846576,-1284.11,0.00019178,2]
[379414102,1755271846586,-592.35,0.00019178,2]
[379414105,1755271846603,-460.0,0.00019178,2]
[379414107,1755271846614,-460.0,0.00019178,2]
[379414109,1755271846624,-471.39,0.00019178,2]
[379414111,1755271846635,-460.0,0.00019178,2]
[379414112,1755271846645,-460.0,0.00019178,2]
[379414115,1755271846655,-460.0,0.00019178,2]
[379414117,1755271846664,-460.0,0.00019178,2]
[379414119,1755271846678,-460.0,0.00019178,2]
[379414120,1755271846688,-460.0,0.00019178,2]
[379414123,1755271846697,-1407.9,0.00019178,2]
[379414124,1755271846707,-460.0,0.00019178,2]
[379414126,1755271846718,-8886.89,0.00019178,2]
[379414128,1755271846728,-460.0,0.00019178,2]
[379414130,1755271846737,-460.67926252,0.00019178,2]
[379414132,1755271846746,-158.36097535,0.00019178,2]
[379414134,1755271846756,-1054.5,0.00019178,2]
[379414136,1755271846765,-460.0,0.00019178,2]
[379414138,1755271846775,-460.0,0.00019178,2]
[379414140,1755271846784,-460.79770301,0.00019178,2]
[379414142,1755271846793,-203.83156559,0.000192,2]
[379414144,1755271846803,-800.0,0.00019268,2]
[379414146,1755271846812,-5759.0,0.00019271,2]
[379414148,1755271846821,-24190.5891698,0.00019352,2]
[379414150,1755271846832,-800.0,0.00019386,2]
[379414152,1755271846841,-800.0,0.00019408,2]
[379414155,1755271846851,-151.0,0.00019419,2]
[379414157,1755271846860,-521.694215,0.00019419,2]
[379414158,1755271846870,-521.694215,0.00019419,2]
[379414160,1755271846879,-168.0,0.00019422,2]
[379414162,1755271846888,-595.77,0.00019452,2]
[379414164,1755271846899,-460.0,0.00019452,2]
[379414166,1755271846908,-460.0,0.00019452,2]
[379414168,1755271846917,-460.0,0.00019452,2]
[379414170,1755271846930,-460.0,0.00019452,2]
[379414172,1755271846940,-1284.11,0.00019452,2]
[379414174,1755271846949,-460.0,0.00019452,2]
[379414176,1755271846962,-471.39,0.00019452,2]
[379414178,1755271846972,-460.0,0.00019452,2]
[379414181,1755271846983,-460.0,0.00019452,2]
[379414183,1755271846992,-254.42,0.00019452,2]
[379414184,1755271847001,-403.33,0.00019452,2]
[379414186,1755271847014,-242.39,0.00019452,2]
[379414189,1755271847031,-460.0,0.00019452,2]
[379414191,1755271847040,-1407.9,0.00019452,2]
[379414193,1755271847050,-460.0,0.00019452,2]
[379414194,1755271847059,-8886.89,0.00019452,2]
[379414197,1755271847068,-1054.5,0.00019452,2]
[379414199,1755271847078,-460.0,0.00019452,2]
[379414200,1755271847087,-441.33735515,0.00019492,2]
[379414202,1755271847097,-800.0,0.00019498,2]
[379414204,1755271847106,-151.0,0.00019519,2]
[379414207,1755271847116,-521.694215,0.00019519,2]
[379414208,1755271847125,-521.694215,0.00019519,2]
[379414210,1755271847134,-304.191,0.00019519,2]
[379414212,1755271847144,-179.18472341,0.00019519,2]
[379414214,1755271847153,-168.0,0.00019536,2]
[379414216,1755271847162,-300.32638483,0.0001955,2]
[379414218,1755271847174,-151.0,0.00019573,2]
[379414220,1755271847184,-151.0,0.00019645,2]